Cogmind - Beta 14 @@@ ROGUE MODE // 2025.03.04 @ 09:53:16 Player: SovietPaperclip Result: Self-destructed Performance ------------- Evolutions (0) 0 Regions Visited (4) 800 Robots Destroyed (1) 5 Value Destroyed (1) 1 Prototype IDs (3) 60 Alien Tech Used (0) 0 Bonus (300) 300 TOTAL SCORE: 1166 Bonus ------- Aligned with FarCom 300 Cogmind --------- Core Integrity 250/250 Matter 294/300 Energy 125/125 System Corruption 0% Temperature Cool (0) Movement Treading (160) Location -9/Mines Parts ------- > --- POWER (1) -------- Light Ion Engine > --- PROPULSION (2) --- Light Treads Light Treads > --- UTILITY (2) ------ Large Storage Unit PSU Rigger > --- WEAPON (2) ------- Assault Rifle Assault Rifle > --- INVENTORY (15) --- Light Treads Light Treads Improved Terrain Scan Processor Light Armor Plating Improved Trap Extractor (0/6) AWS/Thermal Grenade Launcher Grenade Launcher Field Lobotomy Kit (5) Maul Peak State ------------ > --- POWER ------------ Light Ion Engine > --- PROPULSION ------- Light Treads Light Treads > --- UTILITY ---------- Large Storage Unit PSU Rigger > --- WEAPON ----------- AWS/Thermal > --- INVENTORY -------- Light Treads Light Treads Improved Terrain Scan Processor Light Armor Plating Improved Trap Extractor Assault Rifle Assault Rifle Grenade Launcher Grenade Launcher Field Lobotomy Kit Maul [Rating: 30] Favorites ----------- Power Light Ion Engine Engine Light Ion Engine Propulsion Light Treads Treads Light Treads Utility Small Storage Unit Device Improved Trap Extractor Storage Small Storage Unit Protection Light Armor Plating Weapon Assault Rifle Energy Gun AWS/Thermal Ballistic Gun Assault Rifle Special Weapon Field Lobotomy Kit Impact Weapon Maul Build | -11 -10 -10 -10 -9 ------- Run | Yrd Mat Min Exi Min Slots Evolved . | . . . . . Power . | . . . . . Propulsion . | . . . . . Utility . | . . . . . Weapon . | . . . . . Parts Attached 15 | 6 . 3 6 . Power 1 | 1 . . . . Engine 1 | 1 . . . . Core . | . . . . . Reactor . | . . . . . Propulsion 2 | 2 . . . . Treads 2 | 2 . . . . Leg . | . . . . . Wheel . | . . . . . Hover . | . . . . . Flight . | . . . . . Utility 5 | 1 . 2 2 . Device 2 | . . 1 1 . Storage 2 | 1 . . 1 . Processor . | . . . . . Hackware . | . . . . . Protection 1 | . . 1 . . Artifact . | . . . . . Weapon 7 | 2 . 1 4 . Energy Gun 1 | . . . 1 . Energy Cannon . | . . . . . Ballistic Gun 4 | 2 . . 2 . Ballistic Cannon . | . . . . . Launcher . | . . . . . Special Weapon 1 | . . . 1 . Impact Weapon 1 | . . 1 . . Slashing Weapon . | . . . . . Piercing Weapon . | . . . . . Special Melee Weapon . | . . . . . Unidentified Prototypes 3 | . . . 3 . Parts Lost . | . . . . . Power . | . . . . . Propulsion . | . . . . . Utility . | . . . . . Weapon . | . . . . . Highest Loss Streak . | . . . . . To Critical Strikes . | . . . . . Average Slot Usage (%) 97 | . 85 94 100 100 Engine 14 | . 14 14 14 14 Treads 28 | . 28 28 28 28 Device 10 | . . 6 14 14 Storage 14 | . 14 14 14 14 Ballistic Gun 20 | . 28 23 16 28 Impact Weapon 7 | . . 4 11 . Peak Build Rating 30 | 6 6 11 30 18 Average Rating 11 | 4 6 8 12 18 On Entrance 8 | . 6 6 11 18 Naked Turns . | . . . . . Heaviest Build 31 | 12 12 16 31 29 Greatest Support 40 | 40 40 40 40 40 Greatest Overweight (x) . | . . . . . Average Overweight (x) . | . . . . . Largest Inventory Capacity 15 | 8 8 8 15 15 Average Capacity 9 | 6 8 8 10 15 Most Carried 13 | . 2 7 13 11 Average Carried 6 | . 1 5 8 11 Final Capacity 15 | 8 8 8 15 15 Final Carried 11 | . 2 7 11 11 Class Distribution -------------------- 100% | Mutant Dominant Class ---------------- Mutant | -10/Materials Mutant | -10/Mines Mutant | -10/Exiles Mutant | -9/Mines Resources | -11 -10 -10 -10 -9 ----------- Run | Yrd Mat Min Exi Min Matter Collected 344 | 197 . 93 . 54 Remotely . | . . . . . Salvage Created 12 | . . 12 . . Parts 2 | . . 2 . . Haulers Intercepted . | . . . . . Recyclers Shooed . | . . . . . Parts Field Recycled . | . . . . . Retrieved Matter . | . . . . . Parts Self-Destructed . | . . . . . Prevented . | . . . . . Kills | -11 -10 -10 -10 -9 ------- Run | Yrd Mat Min Exi Min Combat Hostiles Destroyed . | . . . . . Classes Destroyed 1 | . . 1 . . Worker 1 | . . 1 . . Best Kill Streak 1 | . . 1 . . Combat Bots Only . | . . . . . Max Kills in Single Turn 1 | . . 1 . . Gunslinging . | . . . . . Exploded . | . . . . . Melee . | . . . . . Uniques/NPCs Destroyed . | . . . . . Combat | -11 -10 -10 -10 -9 -------- Run | Yrd Mat Min Exi Min Hostile Shots Fired 2 | . . 2 . . Missed 1 | . . 1 . . Damage Taken 52 | . . 52 . . Core . | . . . . . Absorbed by Shields . | . . . . . Core Remaining (%) 100 | 100 . . . . Volleys Fired . | . . . . . Largest . | . . . . . Hottest . | . . . . . Shots Fired . | . . . . . Gun . | . . . . . Cannon . | . . . . . Launcher . | . . . . . Special . | . . . . . Kinetic . | . . . . . Thermal . | . . . . . Explosive . | . . . . . Electromagnetic . | . . . . . Robot Hit Streak . | . . . . . Robot Miss Streak . | . . . . . Penetration Max . | . . . . . Secondary Targets . | . . . . . Shots Hit Robots 1 | . . 1 . . Core Hits 1 | . . 1 . . Critical Kills . | . . . . . Critical Parts Destroyed . | . . . . . Critical Strikes . | . . . . . Melee Attacks 3 | . . 3 . . Impact 3 | . . 3 . . Slashing . | . . . . . Piercing . | . . . . . Sneak Attacks 1 | . . 1 . . Combat Hostiles . | . . . . . Follow-up Attacks . | . . . . . Damage Inflicted 98 | . . 98 . . Guns . | . . . . . Cannons . | . . . . . Explosions . | . . . . . Melee 98 | . . 98 . . Ramming . | . . . . . Kinetic . | . . . . . Thermal . | . . . . . Explosive . | . . . . . Electromagnetic . | . . . . . Impact 98 | . . 98 . . Slashing . | . . . . . Piercing . | . . . . . Highest Corruption . | . . . . . Average Corruption . | . . . . . Corruption Purged . | . . . . . Corruption Blocked . | . . . . . Overload Shots . | . . . . . Overflow Damage . | . . . . . Projectiles . | . . . . . Explosions . | . . . . . Melee . | . . . . . Knockbacks . | . . . . . Impact . | . . . . . Kinetic . | . . . . . Secondary . | . . . . . Self-Inflicted Damage . | . . . . . Shots . | . . . . . Rammed . | . . . . . Targets Rammed . | . . . . . Kicked . | . . . . . Crushed . | . . . . . Highest Temperature . | . . . . . Average Temperature . | . . . . . Received Heat Transfer . | . . . . . Siege Activations . | . . . . . Robots Corrupted . | . . . . . Combat Hostiles . | . . . . . Parts Fried . | . . . . . Impact Corruptions . | . . . . . Robots Melted . | . . . . . Combat Hostiles . | . . . . . Parts Melted . | . . . . . Heat Transferred . | . . . . . Parts Sabotaged . | . . . . . Parts Stolen . | . . . . . Parts Stripped . | . . . . . Power Chain Reactions . | . . . . . Alert | -11 -10 -10 -10 -9 ------- Run | Yrd Mat Min Exi Min Peak Influence 20 | . . 20 . . Initial . | . . . . . Average 4 | . . 7 . . Maximum Alert Level . | . . . . . Low Security (%) 100 | 100 100 100 . 100 Level 1 . | . . . . . Level 2 . | . . . . . Level 3 . | . . . . . Level 4 . | . . . . . Level 5 . | . . . . . High Security . | . . . . . Max Security . | . . . . . Squads Dispatched 1 | . . . . 1 Investigation . | . . . . . Extermination . | . . . . . Reinforcement . | . . . . . Assault 1 | . . . . 1 Garrison . | . . . . . Intercept . | . . . . . Searches Triggered . | . . . . . Construction Impeded . | . . . . . Haulers Reinforced . | . . . . . Active Scanning Responses . | . . . . . Cargo Convoy Interrupts . | . . . . . Stealth | -11 -10 -10 -10 -9 --------- Run | Yrd Mat Min Exi Min Distress Signals . | . . . . . Communications Jammed . | . . . . . Distress Signals . | . . . . . Times Spotted 4 | . 2 2 . . Peak Tracking Total 2 | . 2 2 . . Tactical Retreats . | . . . . . Traps | -11 -10 -10 -10 -9 ------- Run | Yrd Mat Min Exi Min Traps Triggered 1 | . . 1 . . Indirectly . | . . . . . Trap Hack Attempts . | . . . . . Triggered . | . . . . . Disarmed . | . . . . . Reprogrammed . | . . . . . Reused . | . . . . . Traps Extracted . | . . . . . Installed . | . . . . . Triggered . | . . . . . Machines | -11 -10 -10 -10 -9 ---------- Run | Yrd Mat Min Exi Min Machines Disabled . | . . . . . Max in Single Turn . | . . . . . Machines Repaired . | . . . . . Machines Dismantled . | . . . . . Machines Sabotaged . | . . . . . Overloaded Fab Kills . | . . . . . Hacking | -11 -10 -10 -10 -9 --------- Run | Yrd Mat Min Exi Min Machines Accessed 2 | . . 1 1 . Terminals . | . . . . . Fabricators . | . . . . . Repair Stations . | . . . . . Recycling Units . | . . . . . Scanalyzers . | . . . . . Garrison Access . | . . . . . Total Hacks 3 | . . 1 2 . Successful 3 | . . 1 2 . Failed . | . . . . . Catastrophic . | . . . . . Database Lockouts . | . . . . . Manual 1 | . . . 1 . Terminals . | . . . . . Fabricators . | . . . . . Repair Stations . | . . . . . Recycling Units . | . . . . . Scanalyzers . | . . . . . Garrison Access . | . . . . . Terminal Hacks 3 | . . 1 2 . Record 2 | . . . 2 . Open Door 1 | . . 1 . . Fabricator Hacks . | . . . . . Repair Station Hacks . | . . . . . Recycling Unit Hacks . | . . . . . Scanalyzer . | . . . . . Garrison Access Hacks . | . . . . . Unauthorized Hacks . | . . . . . Terminals . | . . . . . Fabricators . | . . . . . Repair Stations . | . . . . . Recycling Units . | . . . . . Scanalyzers . | . . . . . Garrison Access . | . . . . . Data Cores Recovered . | . . . . . Used . | . . . . . Hacking Detections . | . . . . . Full Trace Events . | . . . . . Feedback Events . | . . . . . Feedback Blocked . | . . . . . Robot Schematics Acquired . | . . . . . Robots Built . | . . . . . Authchips . | . . . . . Time . | . . . . . Total Robot Build Rating . | . . . . . Part Schematics Acquired . | . . . . . Parts Built . | . . . . . Authchips . | . . . . . Time . | . . . . . Total Part Build Rating . | . . . . . Parts Repaired . | . . . . . Time . | . . . . . Parts Recycled . | . . . . . Recycled Matter . | . . . . . Retrieved Matter . | . . . . . Retrieved Components . | . . . . . Parts Scanalyzed . | . . . . . Part Schematics Acquired . | . . . . . Parts Damaged . | . . . . . Bothacking | -11 -10 -10 -10 -9 ------------ Run | Yrd Mat Min Exi Min Used RIF Installer . | . . . . . Robots Hacked . | . . . . . Non-combat . | . . . . . Combat . | . . . . . Robot Hacks Applied . | . . . . . Relay Couplers Released . | . . . . . Fabnet Peak Effective % . | . . . . . Robots Rewired . | . . . . . Allies Hacked . | . . . . . Hacks Repelled . | . . . . . Allies | -11 -10 -10 -10 -9 -------- Run | Yrd Mat Min Exi Min Total Allies 1 | . . . . 1 Largest Group 1 | . . . . 1 Highest-Rated Group 31 | . . . . 31 Highest-Rated Ally 31 | . . . . 31 Total Orders . | . . . . . Ally Attacks . | . . . . . Total Damage . | . . . . . Kills . | . . . . . Allies Corrupted . | . . . . . Allies Melted . | . . . . . Intel | -11 -10 -10 -10 -9 ------- Run | Yrd Mat Min Exi Min Robot Analysis Total . | . . . . . Derelict Logs Recovered 3 | . . 2 . 1 Drone Launches . | . . . . . Drone Recoveries . | . . . . . Exploration | -11 -10 -10 -10 -9 ------------- Run | Yrd Mat Min Exi Min Turns Passed 1665 | 71 110 470 854 160 Spaces Moved 1007 | 42 67 272 526 100 Core 4 | 4 . . . . Treads 1003 | 38 67 272 526 100 Legs . | . . . . . Wheels . | . . . . . Hover . | . . . . . Flight . | . . . . . Fastest Speed 50 | 50 160 160 160 160 Average Speed 159 | 149 160 160 160 160 Slowest Speed 160 | 160 160 160 160 160 Overloaded Moves . | . . . . . Propulsion Burnouts . | . . . . . Robots Hopped . | . . . . . Cave-ins Triggered . | . . . . . Exploration Rate (%) 36 | 3 23 43 76 36 Regions Visited 4 Branch Regions 3 Pre-discovered Areas 2 | . . . 1 1 Known Exits Taken . | . . . . . Unknown Exits Taken 4 | 1 1 1 1 . Scrap Searched 2 | . . 1 . 1 Spaces Dug . | . . . . . Terrain Destroyed . | . . . . . Melee . | . . . . . Projectile . | . . . . . AOE . | . . . . . Terrain Rammed . | . . . . . Walls Destroyed . | . . . . . Machines Disabled . | . . . . . Actions | -11 -10 -10 -10 -9 --------- Run | Yrd Mat Min Exi Min Total 1056 | 47 70 299 540 100 Wait 19 | . 2 17 . . Move 1003 | 41 66 271 525 100 Hop . | . . . . . Pick Up 11 | . 2 5 4 . Fast Attach 7 | 6 . 1 . . Attach 3 | . . . 3 . Detach 3 | . . . 3 . Swap 5 | . . 2 3 . Drop 2 | . . . 2 . Fire . | . . . . . Melee 3 | . . 3 . . Ram . | . . . . . Kick . | . . . . . Crush . | . . . . . Escape Stasis . | . . . . . Rewire . | . . . . . Trap . | . . . . . Miscellaneous . | . . . . . Route ------- -11/Scrapyard -10/Materials -10/Mines (discovered 2 exits: [*Mat] / *Exi) -10/Exiles -9/Mines History --------- Turn | Location | Event 7 | -11/Scrapyard | Discovered new exit (range 14) 72 | -11/Scrapyard | Entered Materials 172 | -10/Materials | Discovered new exit (range 6) 182 | -10/Materials | Entered Mines 183 | -10/Mines | YI-UF0 nonchalantly dropped a Grenade Launcher on the ground 283 | -10/Mines | Learned location of 1 exit from Materials 301 | -10/Mines | Build established: Mutant 337 | -10/Mines | Joined a pair of Derelicts in attacking an 0b10 outpost 419 | -10/Mines | Discovered new exit (range 9) 427 | -10/Mines | Learned location of 2 exits from Materials 439 | -10/Mines | Met a Derelict who couldn't figure out how to use a Trap Extractor 508 | -10/Mines | Excavation squad dispatched 508 | -10/Mines | A large section of the Mines collapsed 644 | -10/Mines | Deemed a non-threat by the Exiles lab entrance 645 | -10/Mines | Discovered new exit (range 5) 652 | -10/Mines | Entered Exiles 692 | -10/Exiles | Met 8R-AWN 720 | -10/Exiles | Met EX-HEX 772 | -10/Exiles | Met EX-BIN 792 | -10/Exiles | Aligned with FarCom system 793 | -10/Exiles | Given EX-Vault access code 844 | -10/Exiles | Learned location of Zion (-6) 921 | -10/Exiles | Opened EX-Vault 961 | -10/Exiles | Warned to stay clear of 0b10 Research branches 1008 | -10/Exiles | Met EX-DEC 1065 | -10/Exiles | Visited The Gauntlet 1341 | -10/Exiles | Found Prototype Energy Gun 1345 | -10/Exiles | Found Prototype Device 1348 | -10/Exiles | Found Prototype Special Weapon 1349 | -10/Exiles | Identified Field Lobotomy Kit 1351 | -10/Exiles | Identified PSU Rigger 1353 | -10/Exiles | Identified AWS/Thermal 1489 | -10/Exiles | Discovered new exit (range 14) 1506 | -10/Exiles | Stole three prototypes: PSU Rigger, AWS/Thermal, Field Lobotomy Kit 1506 | -10/Exiles | Entered Mines 1653 | -9/Mines | Met a Derelict testing a Signal Generator 1659 | -9/Mines | Assembled infested the area 1666 | -9/Mines | Self-destructed Last Messages --------------- 01569_ Found Med. Battery. 01569_ Found ECM Suite. 01569_ Found Shotgun. 01569_ Found 54 Matter. 01570_ Acquired 54 matter. 01596_ Acquired derelict log, extracted data. World map confirmed: -6/Zion. 01601_ K-01 Serf collects debris. 01653_ A derelict emerges from the shadows: "Quiet! I'm testing a new device we can use to divert those annoying Unaware when we need to." 01654_ Signal Generator broadcasts a burst of procedurally generated transmissions. 01654_ ALERT: Intercepting significant anomalous signal. Dispatching assault force. 01655_ BM-X7C(g): "Okay, I guess that means it works. Now let's get out of here!" 01659_ ALERT: Infestation in the mines, dispatching Demolisher response squad. 01660_ ALERT: Intercepting significant anomalous signal. Redirecting assault force. Map ----- +----------------------------------------------------+ | ??????????????????????????????????????????????? | | ??????????????????????????????????????????????? | | ??????????????????????????????????????????????? | | ??????????????????????????????????????????????? | | ??????????????????????????????????????????????? | | ??????????????????????????????????????????????? | | ??????????????????????????????????????????????? | | ??????????????????????????????????????????????? | | ??????????????????????????????????????????????? | | ??????????????????????????????????????????????? | | ??????????????????????????????????????????????? | | ??????????????????????????????????????????????? | | ??????????????????????????????????????????????? | | ??????????????????????????????????????????????? | | ??????????????????????????????????????????????? | | ??????????????????????????????????????????????? | | ?????????????????????????????????????????????? | | ??????????????????????????????????????????????? | | ?????????????????????????????????????????????? | | ?????????????????????????????????????????????# | | ????????????????????????????????????????????? | | ????????????????????????????????????????????? | | ????????????????????????????????????????????? | | ????????????????????????????????????????????? | | ???????????????????######## """???????????? | | ???????????????????# @ """???????????# | | ???????????????????# ####### #?????????# | | ???????????????????# #??????????????????????# | | ???????????????????# #??????????????????????# | | ???????????????????# #??????????????????????# | | ????????## ######## #??????????????#####???# | | ????????# #??????????##### ##### | | ???????#& #??????????# " | | ??????# ###### ############ " | | ??????# ??????????# " | | ??????????????????# | | ??????????????????################ #### | | ?????????????????????????????????# ####??## | | ?????????????????????????????????# #??????### | | ???????????????????????????????? #????????# | | ??????????????????????????????? #????????# | | ?????????????????????????????? #####???###### | | ?????????????????????????????# ????????# | | ????????????????????????????? ?????????# | | ????????????????????????????##??????????# #### | | ????????????????????????????????????????# ????? | | ????????????????????????????????????????#?????? | | ??????????????????????????????????????????????? | | ??????????????????????????????????????????????? | | ??????????????????????????????????????????????? | +----------------------------------------------------+ Best States ------------- Heat Dissipation 25 Energy Generation 10 Energy Capacity 125 Matter Stores 300 Matter Capacity 300 Sight Range 16 Terrain Scan Density 10 Armor Coverage 150 Evasion (%) 40 Recoil Reduction 2 Trap Extractor Capacity 6 Item Schematics ----------------- None Robot Schematics ------------------ None Fabricated ------------ Nothing Alien Tech Used ----------------- None Achievements -------------- None Challenges ------------ None Game ------ Seed ScanZioniteDrive Manual? 0 Play Time 00:07:05 Cumulative 136.6 hours Start 2025.03.04 @ 00:58:38 End 2025.03.04 @ 09:53:16 Sessions 3 Manual Loads 0 Difficulty Rogue Special Mode None Game No. 190 Rogue 190 Adventurer 0 Explorer 0 Win Type - Total 1 Types 1/0/0/0/0/0/0/0/0 Lore% 48 Gallery% 53 Achievement% 51 Wizard Run 0 Options --------- Layout 1 ASCII 0 Keyboard 0 Movement Numpad Keybinds 0 Fullscreen 2 Font 32/Smallcaps Map View 50x40 Zoom Use 0% Tactical HUD 1 Map Filters NONE Filters NONE Steam 1 RUN: 49779c4c-22fe-4b64-92c5-b1ac42cf846a